[Event "*** Titled Tuesday Blitz"]
[Site "Chess.com"]
[Date "2020.04.28"]
[Round "4"]
[White "SoltaniciR"]
[Black "12teen"]
[Result "1/2-1/2"]
[WhiteElo "2587"]
[BlackElo "2795"]
[TimeControl "180+1"]
[EndTime "10:41:22 PDT"]
[Termination "Game drawn - insufficient material"]

1. e4 {[%clk 0:03:00.9]} 1... a6 {[%clk 0:02:56.3]} 2. d4 {[%clk 0:03:00]} 2...
b5 {[%clk 0:02:55.2]} 3. Nf3 {[%clk 0:02:59.9]} 3... Bb7 {[%clk 0:02:55.6]} 4.
Bd3 {[%clk 0:02:59.8]} 4... e6 {[%clk 0:02:56]} 5. O-O {[%clk 0:02:57.9]} 5...
Nf6 {[%clk 0:02:55.7]} 6. Re1 {[%clk 0:02:51.5]} 6... d5 {[%clk 0:02:55.9]} 7.
exd5 {[%clk 0:02:48.4]} 7... Qxd5 {[%clk 0:02:55.3]} 8. Nc3 {[%clk 0:02:36.1]}
8... Qh5 {[%clk 0:02:54.3]} 9. Ne4 {[%clk 0:02:26.4]} 9... Nbd7 {[%clk
0:02:50.4]} 10. Qe2 {[%clk 0:02:21.3]} 10... Be7 {[%clk 0:02:27.4]} 11. a4
{[%clk 0:02:16.8]} 11... b4 {[%clk 0:02:23.6]} 12. Bf4 {[%clk 0:02:12.7]} 12...
c5 {[%clk 0:02:17]} 13. dxc5 {[%clk 0:01:20.5]} 13... Nxc5 {[%clk 0:02:13.4]}
14. Nd6+ {[%clk 0:01:20.4]} 14... Bxd6 {[%clk 0:02:09.4]} 15. Bxd6 {[%clk
0:01:21.3]} 15... Bxf3 {[%clk 0:02:04.4]} 16. gxf3 {[%clk 0:01:20.2]} 16... Nxd3
{[%clk 0:01:59.2]} 17. cxd3 {[%clk 0:01:19.3]} 17... a5 {[%clk 0:01:48]} 18.
Rac1 {[%clk 0:01:01.4]} 18... Qd5 {[%clk 0:01:44.7]} 19. Qe5 {[%clk 0:00:58.5]}
19... Qxe5 {[%clk 0:01:40.4]} 20. Rxe5 {[%clk 0:00:57.2]} 20... Kd7 {[%clk
0:01:29.9]} 21. Bc5 {[%clk 0:00:44.9]} 21... Rhc8 {[%clk 0:01:29.9]} 22. d4
{[%clk 0:00:44.6]} 22... Nd5 {[%clk 0:01:24.5]} 23. Rg5 {[%clk 0:00:39.3]} 23...
g6 {[%clk 0:01:23.5]} 24. Rg4 {[%clk 0:00:35.6]} 24... h5 {[%clk 0:01:21.5]} 25.
Re4 {[%clk 0:00:35]} 25... Ra6 {[%clk 0:01:21.1]} 26. Kg2 {[%clk 0:00:32.6]}
26... Rac6 {[%clk 0:01:21.1]} 27. Kg3 {[%clk 0:00:29.2]} 27... Nf6 {[%clk
0:01:08.4]} 28. Re2 {[%clk 0:00:25.8]} 28... Ke8 {[%clk 0:01:03]} 29. Kf4 {[%clk
0:00:23.9]} 29... Nd7 {[%clk 0:01:01.3]} 30. Rec2 {[%clk 0:00:22.9]} 30... e5+
{[%clk 0:00:59.3]} 31. Ke4 {[%clk 0:00:21.2]} 31... f5+ {[%clk 0:00:55.5]} 32.
Kd5 {[%clk 0:00:21]} 32... exd4 {[%clk 0:00:50.3]} 33. Re2+ {[%clk 0:00:16.1]}
33... Kf7 {[%clk 0:00:41.6]} 34. Re7+ {[%clk 0:00:15.7]} 34... Kg8 {[%clk
0:00:37.3]} 35. Rxd7 {[%clk 0:00:16.6]} 35... d3 {[%clk 0:00:37.9]} 36. Ke5
{[%clk 0:00:02.2]} 36... Rxc5+ {[%clk 0:00:36.8]} 37. Rxc5 {[%clk 0:00:02.8]}
37... Rxc5+ {[%clk 0:00:37.7]} 38. Kf6 {[%clk 0:00:03.2]} 38... Rc6+ {[%clk
0:00:36.2]} 39. Kg5 {[%clk 0:00:03.5]} 39... Kf8 {[%clk 0:00:25.6]} 40. Rxd3
{[%clk 0:00:03.8]} 40... Rc2 {[%clk 0:00:26.2]} 41. b3 {[%clk 0:00:03.5]} 41...
Rxf2 {[%clk 0:00:26]} 42. Kxg6 {[%clk 0:00:03.3]} 42... Rxh2 {[%clk 0:00:24.5]}
43. Kxf5 {[%clk 0:00:03.7]} 43... Rc2 {[%clk 0:00:23.8]} 44. f4 {[%clk
0:00:02.8]} 44... Rc3 {[%clk 0:00:23.4]} 45. Rd5 {[%clk 0:00:03.2]} 45... h4
{[%clk 0:00:20.5]} 46. Rxa5 {[%clk 0:00:04.1]} 46... h3 {[%clk 0:00:21.1]} 47.
Kg4 {[%clk 0:00:04]} 47... h2 {[%clk 0:00:20.8]} 48. Rh5 {[%clk 0:00:04.3]}
48... Rc2 {[%clk 0:00:16.6]} 49. a5 {[%clk 0:00:04.8]} 49... Kg7 {[%clk
0:00:15.3]} 50. a6 {[%clk 0:00:05.1]} 50... Kg6 {[%clk 0:00:15.4]} 51. f5+
{[%clk 0:00:05.4]} 51... Kf6 {[%clk 0:00:16]} 52. Rh6+ {[%clk 0:00:05.5]} 52...
Ke5 {[%clk 0:00:15.8]} 53. a7 {[%clk 0:00:04.8]} 53... Ra2 {[%clk 0:00:16]} 54.
Rxh2 {[%clk 0:00:05.2]} 54... Rxa7 {[%clk 0:00:16.3]} 55. Re2+ {[%clk
0:00:05.4]} 55... Kd4 {[%clk 0:00:16.8]} 56. f6 {[%clk 0:00:02.8]} 56... Kc3
{[%clk 0:00:16.3]} 57. Kg5 {[%clk 0:00:02.9]} 57... Kxb3 {[%clk 0:00:16.4]} 58.
Kg6 {[%clk 0:00:03.3]} 58... Ka3 {[%clk 0:00:16.3]} 59. f7 {[%clk 0:00:03.5]}
59... Rxf7 {[%clk 0:00:16.3]} 60. Kxf7 {[%clk 0:00:03.5]} 60... b3 {[%clk
0:00:17.2]} 61. Re3 {[%clk 0:00:03.7]} 61... Ka2 {[%clk 0:00:17.3]} 62. Rxb3
{[%clk 0:00:03.6]} 62... Kxb3 {[%clk 0:00:17.6]} 1/2-1/2

[Event "*** Titled Tuesday Blitz"]
[Site "Chess.com"]
[Date "2020.04.28"]
[Round "4"]
[White "MarcoCorvi"]
[Black "Future2700"]
[Result "1-0"]
[WhiteElo "2200"]
[BlackElo "2402"]
[TimeControl "180+1"]
[EndTime "10:41:22 PDT"]
[Termination "MarcoCorvi won by resignation"]

1. c4 {[%clk 0:02:58.1]} 1... Nf6 {[%clk 0:02:59.4]} 2. Nc3 {[%clk 0:02:57.7]}
2... g6 {[%clk 0:02:59.9]} 3. Nf3 {[%clk 0:02:55.4]} 3... d6 {[%clk 0:03:00.8]}
4. g3 {[%clk 0:02:55.5]} 4... Bg7 {[%clk 0:03:01.7]} 5. Bg2 {[%clk 0:02:55.9]}
5... O-O {[%clk 0:03:02.6]} 6. O-O {[%clk 0:02:56.3]} 6... Nc6 {[%clk
0:03:03.1]} 7. d4 {[%clk 0:02:55.9]} 7... Rb8 {[%clk 0:03:03.5]} 8. b3 {[%clk
0:02:52.7]} 8... a6 {[%clk 0:03:03.4]} 9. Bb2 {[%clk 0:02:45.3]} 9... b5 {[%clk
0:03:03.6]} 10. cxb5 {[%clk 0:02:39.5]} 10... axb5 {[%clk 0:03:04.5]} 11. Rc1
{[%clk 0:02:37.6]} 11... Bd7 {[%clk 0:03:04.8]} 12. Re1 {[%clk 0:02:36.5]} 12...
e6 {[%clk 0:03:04.9]} 13. e4 {[%clk 0:02:36.2]} 13... Ne7 {[%clk 0:03:03.4]} 14.
Ba1 {[%clk 0:02:26.9]} 14... b4 {[%clk 0:03:03.7]} 15. Na4 {[%clk 0:02:26]}
15... Bxa4 {[%clk 0:03:03.2]} 16. bxa4 {[%clk 0:02:25.3]} 16... Qd7 {[%clk
0:02:53.4]} 17. Qb3 {[%clk 0:02:19.7]} 17... Rfc8 {[%clk 0:02:52.3]} 18. Bh3
{[%clk 0:02:07.4]} 18... d5 {[%clk 0:02:25.2]} 19. e5 {[%clk 0:02:03.3]} 19...
Ne4 {[%clk 0:02:24.9]} 20. Red1 {[%clk 0:01:50.2]} 20... c5 {[%clk 0:02:20.9]}
21. dxc5 {[%clk 0:01:46]} 21... Nxc5 {[%clk 0:02:21.8]} 22. Qe3 {[%clk
0:01:40.3]} 22... Nxa4 {[%clk 0:02:19.5]} 23. Nd4 {[%clk 0:01:32.2]} 23... Nc6
{[%clk 0:02:04.8]} 24. Nb3 {[%clk 0:01:24.9]} 24... Bf8 {[%clk 0:01:39.9]} 25.
Bf1 {[%clk 0:01:23.5]} 25... Qa7 {[%clk 0:01:34.2]} 26. Qf4 {[%clk 0:01:17.6]}
26... Nc5 {[%clk 0:01:29.9]} 27. Nxc5 {[%clk 0:01:11.1]} 27... Bxc5 {[%clk
0:01:30.8]} 28. h4 {[%clk 0:01:09.7]} 28... h5 {[%clk 0:01:11.4]} 29. g4 {[%clk
0:01:08.7]} 29... hxg4 {[%clk 0:01:12.3]} 30. h5 {[%clk 0:01:08.7]} 30... Ne7
{[%clk 0:01:07.7]} 31. h6 {[%clk 0:01:02.6]} 31... Nf5 {[%clk 0:01:07.5]} 32.
Kg2 {[%clk 0:00:59.7]} 32... g3 {[%clk 0:01:04.8]} 33. Bd3 {[%clk 0:00:55]}
33... Qxa2 {[%clk 0:00:56]} 34. Bxf5 {[%clk 0:00:30.8]} 34... exf5 {[%clk
0:00:55.9]} 35. Rd2 {[%clk 0:00:22.2]} 35... Qa6 {[%clk 0:00:44.9]} 36. e6
{[%clk 0:00:20.2]} 36... Qxe6 {[%clk 0:00:41.9]} 37. h7+ {[%clk 0:00:19.7]}
37... Kf8 {[%clk 0:00:23.1]} 38. h8=Q+ {[%clk 0:00:18]} 38... Ke7 {[%clk
0:00:24]} 39. Qfh4+ {[%clk 0:00:12.7]} 39... Kd7 {[%clk 0:00:22.9]} 40. Qe5
{[%clk 0:00:07.8]} 40... Bd6 {[%clk 0:00:16.2]} 41. Qxe6+ {[%clk 0:00:07.4]}
41... Kxe6 {[%clk 0:00:16.8]} 42. Qf6+ {[%clk 0:00:06.7]} 42... Kd7 {[%clk
0:00:17.3]} 43. Rxd5 {[%clk 0:00:06.9]} 43... Rxc1 {[%clk 0:00:16.6]} 44. Rxd6+
{[%clk 0:00:05.8]} 44... Ke8 {[%clk 0:00:17]} 45. Qh8+ {[%clk 0:00:03.5]} 45...
Ke7 {[%clk 0:00:16.8]} 46. Qf6+ {[%clk 0:00:03.4]} 46... Ke8 {[%clk 0:00:16.6]}
47. Rd8+ {[%clk 0:00:03.1]} 47... Rxd8 {[%clk 0:00:16.5]} 48. Qe5+ {[%clk
0:00:02.7]} 48... Kf8 {[%clk 0:00:16.6]} 49. Qh8+ {[%clk 0:00:02.3]} 49... Ke7
{[%clk 0:00:16.8]} 50. Bf6+ {[%clk 0:00:01.1]} 50... Ke6 {[%clk 0:00:17]} 51.
Qxd8 {[%clk 0:00:01.4]} 51... gxf2 {[%clk 0:00:17]} 52. Qe7+ {[%clk 0:00:02.3]}
52... Kd5 {[%clk 0:00:17]} 53. Kxf2 {[%clk 0:00:02.8]} 53... b3 {[%clk
0:00:17.3]} 54. Kf3 {[%clk 0:00:03.5]} 54... Kc4 {[%clk 0:00:16.5]} 55. Qd7
{[%clk 0:00:04.4]} 55... b2 {[%clk 0:00:16.2]} 56. Qc6+ {[%clk 0:00:05.1]} 56...
Kb3 {[%clk 0:00:16.6]} 57. Qb5+ {[%clk 0:00:04.6]} 57... Kc2 {[%clk 0:00:16.2]}
58. Qxb2+ {[%clk 0:00:05.5]} 58... Kd3 {[%clk 0:00:16.6]} 59. Qxc1 {[%clk
0:00:05.9]} 59... g5 {[%clk 0:00:17.2]} 60. Qf4 {[%clk 0:00:06.4]} 60... g4+
{[%clk 0:00:17.9]} 61. Kg3 {[%clk 0:00:05.3]} 61... Ke2 {[%clk 0:00:18.3]} 62.
Qxf5 {[%clk 0:00:06.2]} 62... Ke3 {[%clk 0:00:18.4]} 63. Qxg4 {[%clk 0:00:07.1]}
1-0

[Event "*** Titled Tuesday Blitz"]
[Site "Chess.com"]
[Date "2020.04.28"]
[Round "4"]
[White "davidkalashian"]
[Black "GM_dmitrij"]
[Result "0-1"]
[WhiteElo "2552"]
[BlackElo "2986"]
[TimeControl "180+1"]
[EndTime "10:41:23 PDT"]
[Termination "GM_dmitrij won by resignation"]

1. e4 {[%clk 0:03:00.9]} 1... e5 {[%clk 0:02:57.9]} 2. Nf3 {[%clk 0:02:59.8]}
2... Nc6 {[%clk 0:02:58.5]} 3. d4 {[%clk 0:02:59.4]} 3... exd4 {[%clk
0:02:58.3]} 4. Nxd4 {[%clk 0:02:59]} 4... Nf6 {[%clk 0:02:58.6]} 5. Nc3 {[%clk
0:02:58.1]} 5... Bb4 {[%clk 0:02:57]} 6. Nxc6 {[%clk 0:02:56.7]} 6... bxc6
{[%clk 0:02:57.9]} 7. Bd3 {[%clk 0:02:54.4]} 7... O-O {[%clk 0:02:58.2]} 8. O-O
{[%clk 0:02:53.5]} 8... Re8 {[%clk 0:02:58.7]} 9. Qf3 {[%clk 0:02:47.5]} 9...
Bd6 {[%clk 0:02:55.8]} 10. Bf4 {[%clk 0:02:42.4]} 10... Rb8 {[%clk 0:02:48.6]}
11. Bxd6 {[%clk 0:02:40.2]} 11... cxd6 {[%clk 0:02:49.3]} 12. b3 {[%clk
0:02:33.5]} 12... Qe7 {[%clk 0:02:48.8]} 13. Rfe1 {[%clk 0:02:25.8]} 13... Qe5
{[%clk 0:02:48]} 14. Bf1 {[%clk 0:02:00.2]} 14... Bb7 {[%clk 0:02:38.4]} 15. Qg3
{[%clk 0:01:54.1]} 15... Nh5 {[%clk 0:02:13.6]} 16. Qxe5 {[%clk 0:01:52]} 16...
dxe5 {[%clk 0:02:14.5]} 17. Rad1 {[%clk 0:01:50.5]} 17... Rbd8 {[%clk
0:02:15.1]} 18. Rd6 {[%clk 0:01:47.3]} 18... Kf8 {[%clk 0:02:14.9]} 19. Red1
{[%clk 0:01:47.3]} 19... Ke7 {[%clk 0:02:13.1]} 20. Na4 {[%clk 0:01:46]} 20...
Nf6 {[%clk 0:01:53.6]} 21. Nc5 {[%clk 0:00:52.3]} 21... Bc8 {[%clk 0:01:53.7]}
22. f4 {[%clk 0:00:33.4]} 22... exf4 {[%clk 0:01:36.9]} 23. c4 {[%clk
0:00:30.9]} 23... Ng4 {[%clk 0:01:13]} 24. b4 {[%clk 0:00:22.4]} 24... Ne5
{[%clk 0:01:11.4]} 25. b5 {[%clk 0:00:19.9]} 25... f6 {[%clk 0:01:09.4]} 26. a4
{[%clk 0:00:16.9]} 26... Nf7 {[%clk 0:01:07.5]} 27. R6d2 {[%clk 0:00:17.3]}
27... g5 {[%clk 0:00:46.2]} 28. a5 {[%clk 0:00:16.3]} 28... d6 {[%clk
0:00:46.2]} 29. Nb3 {[%clk 0:00:15.7]} 29... Ne5 {[%clk 0:00:39.5]} 30. Nd4
{[%clk 0:00:14.8]} 30... c5 {[%clk 0:00:35.2]} 31. Nb3 {[%clk 0:00:13.6]} 31...
Be6 {[%clk 0:00:35]} 32. b6 {[%clk 0:00:11.8]} 32... axb6 {[%clk 0:00:25.4]} 33.
axb6 {[%clk 0:00:12.7]} 33... Bxc4 {[%clk 0:00:24.3]} 34. Na5 {[%clk 0:00:10.2]}
34... Bxf1 {[%clk 0:00:22.1]} 35. Kxf1 {[%clk 0:00:11.1]} 35... Ra8 {[%clk
0:00:20.4]} 36. Ra2 {[%clk 0:00:08.4]} 36... Ke6 {[%clk 0:00:16.9]} 37. Rda1
{[%clk 0:00:06.8]} 37... Reb8 {[%clk 0:00:15.3]} 38. b7 {[%clk 0:00:06.4]} 38...
Ra7 {[%clk 0:00:14.6]} 39. Ke2 {[%clk 0:00:06.3]} 39... Kd7 {[%clk 0:00:12]} 40.
Kd2 {[%clk 0:00:06.1]} 40... Nc6 {[%clk 0:00:12]} 41. Kc3 {[%clk 0:00:06.6]}
41... Rxa5 {[%clk 0:00:11.2]} 42. Rxa5 {[%clk 0:00:07.5]} 42... Nxa5 {[%clk
0:00:12.1]} 43. Rxa5 {[%clk 0:00:07]} 43... Rxb7 {[%clk 0:00:13]} 44. Ra8 {[%clk
0:00:07.1]} 44... Rb4 {[%clk 0:00:11.7]} 45. Rf8 {[%clk 0:00:03.6]} 45... Ke7
{[%clk 0:00:11.2]} 46. Rh8 {[%clk 0:00:02.6]} 46... Rxe4 {[%clk 0:00:11.6]} 47.
Rxh7+ {[%clk 0:00:03.5]} 47... Ke6 {[%clk 0:00:12.2]} 48. h4 {[%clk 0:00:03.2]}
48... Re3+ {[%clk 0:00:13.1]} 49. Kc4 {[%clk 0:00:02.7]} 49... Rg3 {[%clk
0:00:13.2]} 50. Kb5 {[%clk 0:00:03.6]} 50... Rxg2 {[%clk 0:00:13.3]} 51. hxg5
{[%clk 0:00:04.5]} 51... fxg5 {[%clk 0:00:13.5]} 52. Rh6+ {[%clk 0:00:05.4]}
52... Kf5 {[%clk 0:00:13.6]} 53. Rh5 {[%clk 0:00:05.7]} 53... f3 {[%clk
0:00:13.8]} 54. Kc6 {[%clk 0:00:06.6]} 54... f2 {[%clk 0:00:14.2]} 55. Rh8
{[%clk 0:00:07.1]} 55... Kg4 {[%clk 0:00:14]} 56. Rf8 {[%clk 0:00:08]} 56... Kg3
{[%clk 0:00:14.4]} 57. Kd5 {[%clk 0:00:08.6]} 57... g4 {[%clk 0:00:15.3]} 58.
Ke4 {[%clk 0:00:05.3]} 58... Rg1 {[%clk 0:00:15.5]} 0-1

[Event "*** Titled Tuesday Blitz"]
[Site "Chess.com"]
[Date "2020.04.28"]
[Round "4"]
[White "CMFernandez"]
[Black "The_Machine04"]
[Result "1/2-1/2"]
[WhiteElo "2073"]
[BlackElo "2286"]
[TimeControl "180+1"]
[EndTime "10:41:24 PDT"]
[Termination "Game drawn - insufficient material"]

1. d4 {[%clk 0:03:00.9]} 1... d6 {[%clk 0:03:00.9]} 2. Nf3 {[%clk 0:03:00.2]}
2... Nf6 {[%clk 0:02:58.5]} 3. c4 {[%clk 0:03:00.3]} 3... g6 {[%clk 0:02:55.8]}
4. Nc3 {[%clk 0:03:00.5]} 4... Bf5 {[%clk 0:02:56]} 5. Nh4 {[%clk 0:02:49.1]}
5... Bd7 {[%clk 0:02:54.7]} 6. e4 {[%clk 0:02:48]} 6... Bg7 {[%clk 0:02:53.2]}
7. Nf3 {[%clk 0:02:48.1]} 7... c5 {[%clk 0:02:53]} 8. Be2 {[%clk 0:02:47.1]}
8... O-O {[%clk 0:02:51.1]} 9. d5 {[%clk 0:02:42.9]} 9... Na6 {[%clk 0:02:50.5]}
10. Bf4 {[%clk 0:02:42.2]} 10... Nc7 {[%clk 0:02:44.4]} 11. a4 {[%clk
0:02:38.9]} 11... b6 {[%clk 0:02:43.5]} 12. O-O {[%clk 0:02:38.4]} 12... a6
{[%clk 0:02:43.2]} 13. e5 {[%clk 0:02:38.5]} 13... Nfe8 {[%clk 0:02:36.6]} 14.
Re1 {[%clk 0:02:31.9]} 14... Rb8 {[%clk 0:02:35.3]} 15. Qd2 {[%clk 0:02:27.5]}
15... b5 {[%clk 0:02:34.6]} 16. axb5 {[%clk 0:02:26.6]} 16... axb5 {[%clk
0:02:34.9]} 17. b3 {[%clk 0:02:20.2]} 17... bxc4 {[%clk 0:02:27.3]} 18. bxc4
{[%clk 0:02:16.1]} 18... Rb4 {[%clk 0:02:24.9]} 19. Reb1 {[%clk 0:02:14.5]}
19... Rxb1+ {[%clk 0:02:03.6]} 20. Rxb1 {[%clk 0:02:13.2]} 20... Bg4 {[%clk
0:02:02.2]} 21. exd6 {[%clk 0:02:00.9]} 21... Nxd6 {[%clk 0:01:55.5]} 22. Ne5
{[%clk 0:01:40.9]} 22... Bxe2 {[%clk 0:01:44.4]} 23. Qxe2 {[%clk 0:01:39.7]}
23... Re8 {[%clk 0:01:26.3]} 24. h3 {[%clk 0:01:37.2]} 24... e6 {[%clk
0:01:16.6]} 25. dxe6 {[%clk 0:01:17.6]} 25... Rxe6 {[%clk 0:00:55.4]} 26. Rd1
{[%clk 0:01:10.9]} 26... Qe8 {[%clk 0:00:48.7]} 27. Nd5 {[%clk 0:00:24.6]} 27...
Nxd5 {[%clk 0:00:32.7]} 28. Rxd5 {[%clk 0:00:24.8]} 28... f6 {[%clk 0:00:28.9]}
29. Qd2 {[%clk 0:00:24]} 29... fxe5 {[%clk 0:00:25.1]} 30. Rxd6 {[%clk
0:00:23.6]} 30... Rxd6 {[%clk 0:00:20.2]} 31. Qxd6 {[%clk 0:00:23.5]} 31... exf4
{[%clk 0:00:20.4]} 32. Qxc5 {[%clk 0:00:23.9]} 32... Qe1+ {[%clk 0:00:16.2]} 33.
Kh2 {[%clk 0:00:24]} 33... f3 {[%clk 0:00:10.9]} 34. Qd5+ {[%clk 0:00:20]} 34...
Kf8 {[%clk 0:00:07.4]} 35. Qd8+ {[%clk 0:00:19]} 35... Qe8 {[%clk 0:00:06.3]}
36. Qd6+ {[%clk 0:00:18.6]} 36... Qe7 {[%clk 0:00:06.1]} 37. Qf4+ {[%clk
0:00:17.2]} 37... Qf6 {[%clk 0:00:05.9]} 38. Qb8+ {[%clk 0:00:16.8]} 38... Kf7
{[%clk 0:00:06.1]} 39. Qc7+ {[%clk 0:00:16]} 39... Qe7 {[%clk 0:00:06.2]} 40.
Qf4+ {[%clk 0:00:15.9]} 40... Qf6 {[%clk 0:00:06.1]} 41. Qc7+ {[%clk 0:00:16.1]}
41... Kg8 {[%clk 0:00:06.4]} 42. Qc8+ {[%clk 0:00:11.3]} 42... Qf8 {[%clk
0:00:05.6]} 43. Qe6+ {[%clk 0:00:11]} 43... Kh8 {[%clk 0:00:05.3]} 44. g3 {[%clk
0:00:10.4]} 44... h6 {[%clk 0:00:03.3]} 45. Qxg6 {[%clk 0:00:09.9]} 45... Qc5
{[%clk 0:00:03.2]} 46. Qe8+ {[%clk 0:00:08.3]} 46... Kh7 {[%clk 0:00:03.7]} 47.
Qe4+ {[%clk 0:00:08.8]} 47... Kh8 {[%clk 0:00:04]} 48. Qxf3 {[%clk 0:00:09.5]}
48... Bd4 {[%clk 0:00:04]} 49. Kg2 {[%clk 0:00:07]} 49... Qe5 {[%clk 0:00:04.5]}
50. h4 {[%clk 0:00:06.8]} 50... Kg7 {[%clk 0:00:04.8]} 51. Qd5 {[%clk
0:00:06.9]} 51... Qxd5+ {[%clk 0:00:04.8]} 52. cxd5 {[%clk 0:00:07.1]} 52... Kf6
{[%clk 0:00:05.1]} 53. Kf3 {[%clk 0:00:07.5]} 53... Ke5 {[%clk 0:00:05.4]} 54.
Kg4 {[%clk 0:00:08]} 54... Bxf2 {[%clk 0:00:05.2]} 55. Kh5 {[%clk 0:00:08.2]}
55... Bxg3 {[%clk 0:00:04.8]} 56. Kxh6 {[%clk 0:00:08.3]} 56... Bxh4 {[%clk
0:00:05.7]} 57. Kg6 {[%clk 0:00:07.5]} 57... Kxd5 {[%clk 0:00:06.1]} 1/2-1/2

[Event "*** Titled Tuesday Blitz"]
[Site "Chess.com"]
[Date "2020.04.28"]
[Round "4"]
[White "AndrewDGreen"]
[Black "PawnEatingZombie"]
[Result "1/2-1/2"]
[WhiteElo "2301"]
[BlackElo "2112"]
[TimeControl "180+1"]
[EndTime "10:41:24 PDT"]
[Termination "Game drawn by stalemate"]

1. d4 {[%clk 0:03:00.9]} 1... d5 {[%clk 0:02:59.2]} 2. Bf4 {[%clk 0:03:00.3]}
2... e6 {[%clk 0:02:59.1]} 3. e3 {[%clk 0:03:00.3]} 3... Nf6 {[%clk 0:02:57.9]}
4. Nd2 {[%clk 0:02:59.4]} 4... Bd6 {[%clk 0:02:57.8]} 5. Bg3 {[%clk 0:02:59.2]}
5... c5 {[%clk 0:02:57.1]} 6. c3 {[%clk 0:02:59.3]} 6... Qc7 {[%clk 0:02:56]} 7.
Ngf3 {[%clk 0:02:52.9]} 7... Nbd7 {[%clk 0:02:55.1]} 8. c4 {[%clk 0:02:49.8]}
8... Bxg3 {[%clk 0:02:35]} 9. hxg3 {[%clk 0:02:49.1]} 9... cxd4 {[%clk
0:02:34.5]} 10. Nxd4 {[%clk 0:02:43.3]} 10... O-O {[%clk 0:02:20.6]} 11. Rc1
{[%clk 0:02:39.6]} 11... Qb6 {[%clk 0:02:11.8]} 12. cxd5 {[%clk 0:02:32.2]}
12... Nxd5 {[%clk 0:02:02.3]} 13. Bd3 {[%clk 0:02:27.2]} 13... N7f6 {[%clk
0:01:41.3]} 14. Nc4 {[%clk 0:02:03.8]} 14... Qd8 {[%clk 0:01:38.3]} 15. g4
{[%clk 0:02:02.2]} 15... e5 {[%clk 0:01:22.9]} 16. Nxe5 {[%clk 0:01:57.3]} 16...
Re8 {[%clk 0:01:23.4]} 17. g5 {[%clk 0:01:52.5]} 17... Rxe5 {[%clk 0:01:16.6]}
18. gxf6 {[%clk 0:01:51.5]} 18... Nxf6 {[%clk 0:01:15.8]} 19. Nf3 {[%clk
0:01:33.9]} 19... Qa5+ {[%clk 0:01:11.9]} 20. Kf1 {[%clk 0:01:31.7]} 20... Rc5
{[%clk 0:00:58.3]} 21. a3 {[%clk 0:00:59]} 21... Bg4 {[%clk 0:00:56.4]} 22. Rxc5
{[%clk 0:00:51.8]} 22... Qxc5 {[%clk 0:00:55.2]} 23. b4 {[%clk 0:00:51.8]} 23...
Qc3 {[%clk 0:00:50.2]} 24. Qc2 {[%clk 0:00:46.4]} 24... Qxc2 {[%clk 0:00:47.9]}
25. Bxc2 {[%clk 0:00:47.3]} 25... Rc8 {[%clk 0:00:46.7]} 26. Ne1 {[%clk
0:00:44]} 26... Rc3 {[%clk 0:00:43]} 27. f3 {[%clk 0:00:42.3]} 27... Be6 {[%clk
0:00:41.8]} 28. a4 {[%clk 0:00:41.6]} 28... h6 {[%clk 0:00:36.1]} 29. Ke2 {[%clk
0:00:40.4]} 29... Nd5 {[%clk 0:00:35.9]} 30. e4 {[%clk 0:00:36.5]} 30... Nxb4
{[%clk 0:00:35.8]} 31. Kd2 {[%clk 0:00:35.1]} 31... Ra3 {[%clk 0:00:31.4]} 32.
Nd3 {[%clk 0:00:26.6]} 32... Nxc2 {[%clk 0:00:30.3]} 33. Kxc2 {[%clk 0:00:24.5]}
33... Rxa4 {[%clk 0:00:30.8]} 34. Rc1 {[%clk 0:00:21.8]} 34... Ra2+ {[%clk
0:00:30]} 35. Nb2 {[%clk 0:00:22]} 35... b5 {[%clk 0:00:26.3]} 36. Kc3 {[%clk
0:00:21.1]} 36... a5 {[%clk 0:00:23.7]} 37. g4 {[%clk 0:00:21.3]} 37... g5
{[%clk 0:00:23.2]} 38. Rd1 {[%clk 0:00:18.4]} 38... b4+ {[%clk 0:00:21.8]} 39.
Kc2 {[%clk 0:00:18.8]} 39... a4 {[%clk 0:00:20.5]} 40. Rd8+ {[%clk 0:00:17.7]}
40... Kg7 {[%clk 0:00:20]} 41. Rb8 {[%clk 0:00:18.2]} 41... Bb3+ {[%clk
0:00:17.4]} 42. Kb1 {[%clk 0:00:17.8]} 42... a3 {[%clk 0:00:15.8]} 43. Nd3
{[%clk 0:00:15.3]} 43... Rd2 {[%clk 0:00:09.8]} 44. Nc1 {[%clk 0:00:13.2]} 44...
a2+ {[%clk 0:00:07.3]} 45. Ka1 {[%clk 0:00:12.4]} 45... Bc4 {[%clk 0:00:06.3]}
46. Rxb4 {[%clk 0:00:12.1]} 46... Be6 {[%clk 0:00:05.4]} 47. Rb6 {[%clk
0:00:08.6]} 47... Rf2 {[%clk 0:00:05.2]} 48. Rc6 {[%clk 0:00:06.7]} 48... Rxf3
{[%clk 0:00:04.5]} 49. Kb2 {[%clk 0:00:06.6]} 49... Rf4 {[%clk 0:00:03.8]} 50.
e5 {[%clk 0:00:05.9]} 50... Rxg4 {[%clk 0:00:03.3]} 51. Rc7 {[%clk 0:00:06.2]}
51... Rg2+ {[%clk 0:00:03.1]} 52. Ka1 {[%clk 0:00:05.9]} 52... h5 {[%clk
0:00:03.7]} 53. Rc3 {[%clk 0:00:05]} 53... h4 {[%clk 0:00:03.7]} 54. Rc7 {[%clk
0:00:04.4]} 54... h3 {[%clk 0:00:04]} 55. Rc3 {[%clk 0:00:03.5]} 55... h2 {[%clk
0:00:04.2]} 56. Rc2 {[%clk 0:00:03.5]} 56... Rxc2 {[%clk 0:00:03.4]} 57. Nd3
{[%clk 0:00:03.5]} 57... Rd2 {[%clk 0:00:03.2]} 58. Nc1 {[%clk 0:00:03.1]} 58...
h1=Q {[%clk 0:00:03.5]} 1/2-1/2